[Event "Championnat d'Europe de Blitz"]
[Date "2024.12.09"]
[White "Avramidou, Anastasia"]
[Black "Dvirnyy, Danyyil"]
[WhiteElo "2298"]
[BlackElo "2491"]
[Round "2.37"]
[Result "0-1"]
[TimeControl "180+2"]

1. d4 {[%emt 00:00:02] [%clk 00:03:01]} Nf6 {[%emt 00:00:01] [%clk 00:03:03]} 2.
c4 {[%clk 00:03:02]} e6 {[%emt 00:00:01] [%clk 00:03:04]} 3. Nf3 {[%clk
00:03:04]} d5 {[%clk 00:03:05]} 4. Nc3 {[%emt 00:00:01] [%clk 00:03:05]} a6
{[%emt 00:00:04] [%clk 00:03:03]} 5. cxd5 {[%emt 00:00:05] [%clk 00:03:01]} exd5
{[%emt 00:00:01] [%clk 00:03:04]} 6. Bg5 {[%emt 00:00:10] [%clk 00:02:53]} Be6
{[%emt 00:00:02] [%clk 00:03:05]} 7. e3 {[%emt 00:00:01] [%clk 00:02:54]} Nbd7
{[%emt 00:00:03] [%clk 00:03:04]} 8. Bd3 {[%emt 00:00:02] [%clk 00:02:54]} Bd6
{[%emt 00:00:02] [%clk 00:03:04]} 9. Qc2 {[%emt 00:00:21] [%clk 00:02:35]} h6
{[%emt 00:00:23] [%clk 00:02:43]} 10. Bh4 {[%emt 00:00:01] [%clk 00:02:36]} c6
{[%emt 00:00:05] [%clk 00:02:40]} 11. O-O {[%emt 00:00:06] [%clk 00:02:32]} Qc7
{[%emt 00:00:06] [%clk 00:02:35]} 12. Rfe1 {[%emt 00:00:13] [%clk 00:02:21]} O-O
{[%emt 00:00:04] [%clk 00:02:33]} 13. e4 {[%emt 00:00:06] [%clk 00:02:17]} dxe4
{[%emt 00:00:03] [%clk 00:02:32]} 14. Nxe4 {[%emt 00:00:01] [%clk 00:02:18]}
Nxe4 {[%emt 00:00:08] [%clk 00:02:26]} 15. Bxe4 {[%emt 00:00:01] [%clk
00:02:18]} Rfe8 {[%emt 00:00:09] [%clk 00:02:19]} 16. Rad1 {[%emt 00:00:50]
[%clk 00:01:30]} Qa5 {[%emt 00:00:03] [%clk 00:02:18]} 17. a3 {[%emt 00:00:06]
[%clk 00:01:27]} Bg4 {[%emt 00:00:20] [%clk 00:01:59]} 18. Re2 {[%emt 00:00:32]
[%clk 00:00:57]} Qh5 {[%emt 00:00:16] [%clk 00:01:46]} 19. Bg3 {[%emt 00:00:04]
[%clk 00:00:55]} Bxg3 {[%emt 00:00:02] [%clk 00:01:46]} 20. hxg3 {[%emt
00:00:02] [%clk 00:00:55]} Nf6 {[%emt 00:00:03] [%clk 00:01:45]} 21. Rde1 {[%emt
00:00:11] [%clk 00:00:46]} Re6 {[%emt 00:00:39] [%clk 00:01:08]} 22. Bd3 {[%emt
00:00:10] [%clk 00:00:38]} Rxe2 {[%emt 00:00:35] [%clk 00:00:35]} 23. Bxe2
{[%clk 00:00:39]} Re8 {[%emt 00:00:04] [%clk 00:00:34]} 24. Qc1 {[%emt 00:00:26]
[%clk 00:00:15]} a5 {[%emt 00:00:13] [%clk 00:00:22]} 25. Qd2 {[%emt 00:00:02]
[%clk 00:00:15]} Re6 {[%emt 00:00:07] [%clk 00:00:17]} 26. Qd1 {[%emt 00:00:09]
[%clk 00:00:09]} Qd5 {[%emt 00:00:10] [%clk 00:00:08]} 27. Ne5 {[%emt 00:00:04]
[%clk 00:00:07]} Bxe2 {[%emt 00:00:01] [%clk 00:00:09]} 28. Rxe2 {[%emt
00:00:01] [%clk 00:00:08]} Nd7 {[%emt 00:00:02] [%clk 00:00:10]} 29. Nxd7 {[%emt
00:00:01] [%clk 00:00:08]} Qxd7 {[%emt 00:00:02] [%clk 00:00:10]} 30. Rxe6
{[%emt 00:00:01] [%clk 00:00:09]} Qxe6 {[%emt 00:00:01] [%clk 00:00:11]} 31. Qd2
{[%clk 00:00:10]} Qd5 {[%emt 00:00:01] [%clk 00:00:12]} 32. Qe3 {[%emt 00:00:02]
[%clk 00:00:10]} a4 {[%emt 00:00:03] [%clk 00:00:12]} 33. Qe8+ {[%emt 00:00:05]
[%clk 00:00:07]} Kh7 {[%emt 00:00:02] [%clk 00:00:11]} 34. Qe3 {[%emt 00:00:02]
[%clk 00:00:07]} b5 {[%emt 00:00:04] [%clk 00:00:09]} 35. g4 {[%emt 00:00:04]
[%clk 00:00:05]} g6 {[%emt 00:00:02] [%clk 00:00:10]} 36. f3 {[%emt 00:00:01]
[%clk 00:00:06]} Kg8 {[%emt 00:00:04] [%clk 00:00:08]} 37. Qe8+ {[%emt 00:00:02]
[%clk 00:00:06]} Kg7 {[%emt 00:00:02] [%clk 00:00:08]} 38. Qe3 {[%clk 00:00:07]}
Qd6 {[%emt 00:00:05] [%clk 00:00:06]} 39. Kf2 {[%emt 00:00:02] [%clk 00:00:07]}
Qd5 {[%emt 00:00:01] [%clk 00:00:07]} 40. Ke2 {[%emt 00:00:01] [%clk 00:00:07]}
Qc4+ {[%emt 00:00:04] [%clk 00:00:05]} 41. Kd2 {[%emt 00:00:06] [%clk 00:00:04]}
Qf1 {[%emt 00:00:01] [%clk 00:00:05]} 42. Qe5+ {[%emt 00:00:02] [%clk 00:00:04]}
Kf8 {[%clk 00:00:06]} 43. Qd6+ {[%emt 00:00:01] [%clk 00:00:04]} Kg8 {[%clk
00:00:08]} 44. Qxc6 {[%emt 00:00:03] [%clk 00:00:03]} Qxg2+ {[%emt 00:00:01]
[%clk 00:00:08]} 45. Kc3 {[%clk 00:00:05]} Qe2 {[%emt 00:00:02] [%clk 00:00:07]}
46. Qc8+ {[%emt 00:00:04] [%clk 00:00:03]} Kg7 {[%emt 00:00:01] [%clk 00:00:08]}
47. Qb7 {[%emt 00:00:02] [%clk 00:00:04]} Qc4+ {[%emt 00:00:01] [%clk 00:00:09]}
48. Kd2 {[%emt 00:00:02] [%clk 00:00:05]} Qxd4+ {[%clk 00:00:10]} 49. Kc2 {[%clk
00:00:06]} Qc4+ {[%emt 00:00:01] [%clk 00:00:11]} 50. Kd2 {[%clk 00:00:08]} Qf4+
{[%emt 00:00:03] [%clk 00:00:10]} 51. Ke2 {[%emt 00:00:04] [%clk 00:00:06]} Qe5+
{[%emt 00:00:01] [%clk 00:00:11]} 52. Kf1 {[%emt 00:00:05] [%clk 00:00:03]} Qxb2
{[%emt 00:00:02] [%clk 00:00:11]} 53. Qd7 {[%emt 00:00:02] [%clk 00:00:03]} b4
{[%emt 00:00:02] [%clk 00:00:11]} 54. axb4 {[%emt 00:00:03] [%clk 00:00:00]} 0-1

[Site "Europe Echecs"]

[Event "Championnat d'Europe de Blitz"]
[Date "2024.12.09"]
[White "Subelj, Jan"]
[Black "Biljanic, Ljubomir"]
[WhiteElo "2526"]
[BlackElo "2130"]
[Round "2.38"]
[Result "1-0"]
[TimeControl "180+2"]

1. e4 {[%emt 00:00:02] [%clk 00:03:02]} d6 {[%clk 00:03:04]} 2. d4 {[%clk
00:03:03]} Nf6 {[%emt 00:00:01] [%clk 00:03:05]} 3. f3 {[%emt 00:00:02] [%clk
00:03:03]} c6 {[%emt 00:00:06] [%clk 00:03:01]} 4. c4 {[%emt 00:00:02] [%clk
00:03:03]} Qc7 {[%emt 00:00:04] [%clk 00:02:59]} 5. Nc3 {[%emt 00:00:02] [%clk
00:03:03]} e5 {[%emt 00:00:05] [%clk 00:02:56]} 6. d5 {[%emt 00:00:02] [%clk
00:03:03]} Be7 {[%emt 00:00:04] [%clk 00:02:54]} 7. Be3 {[%emt 00:00:02] [%clk
00:03:03]} Nbd7 {[%emt 00:00:08] [%clk 00:02:48]} 8. Nh3 {[%emt 00:00:02] [%clk
00:03:03]} O-O {[%emt 00:00:11] [%clk 00:02:40]} 9. Nf2 {[%clk 00:03:04]} a5
{[%emt 00:00:05] [%clk 00:02:37]} 10. Be2 {[%emt 00:00:02] [%clk 00:03:04]} h6
{[%emt 00:00:17] [%clk 00:02:22]} 11. g4 {[%emt 00:00:02] [%clk 00:03:04]} Nh7
{[%emt 00:00:05] [%clk 00:02:20]} 12. h4 {[%emt 00:00:02] [%clk 00:03:05]} Qd8
{[%emt 00:00:01] [%clk 00:02:20]} 13. Qd2 {[%emt 00:00:01] [%clk 00:03:05]} c5
{[%emt 00:00:50] [%clk 00:01:33]} 14. g5 {[%emt 00:00:35] [%clk 00:02:32]} h5
{[%emt 00:00:31] [%clk 00:01:04]} 15. O-O-O {[%emt 00:00:02] [%clk 00:02:32]}
Re8 {[%emt 00:00:10] [%clk 00:00:55]} 16. f4 {[%emt 00:00:06] [%clk 00:02:28]}
exf4 {[%emt 00:00:05] [%clk 00:00:51]} 17. Bxf4 {[%emt 00:00:02] [%clk
00:02:28]} g6 {[%emt 00:00:02] [%clk 00:00:51]} 18. Nb5 {[%emt 00:00:02] [%clk
00:02:29]} Ra6 {[%emt 00:00:27] [%clk 00:00:27]} 19. Nd3 {[%emt 00:00:04] [%clk
00:02:27]} Bf8 {[%emt 00:00:12] [%clk 00:00:16]} 20. Bf3 {[%emt 00:00:02] [%clk
00:02:28]} 1-0

[Site "Europe Echecs"]

[Event "Championnat d'Europe de Blitz"]
[Date "2024.12.09"]
[White "Ciric, Pavle"]
[Black "Kuzubov, Yuriy"]
[WhiteElo "2346"]
[BlackElo "2595"]
[Round "2.39"]
[Result "0-1"]
[TimeControl "180+2"]

1. Nf3 {[%clk 00:03:02]} d5 {[%emt 00:00:01] [%clk 00:03:03]} 2. g3 {[%emt
00:00:01] [%clk 00:03:03]} g6 {[%emt 00:00:03] [%clk 00:03:02]} 3. Bg2 {[%emt
00:00:02] [%clk 00:03:04]} Bg7 {[%emt 00:00:01] [%clk 00:03:02]} 4. d4 {[%emt
00:00:02] [%clk 00:03:04]} c6 {[%emt 00:00:08] [%clk 00:02:57]} 5. O-O {[%emt
00:00:02] [%clk 00:03:04]} Nf6 {[%emt 00:00:07] [%clk 00:02:52]} 6. c4 {[%emt
00:00:02] [%clk 00:03:05]} O-O {[%emt 00:00:04] [%clk 00:02:49]} 7. cxd5 {[%emt
00:00:03] [%clk 00:03:03]} cxd5 {[%emt 00:00:03] [%clk 00:02:49]} 8. Ne5 {[%emt
00:00:01] [%clk 00:03:03]} Nc6 {[%emt 00:00:08] [%clk 00:02:43]} 9. Nxc6 {[%emt
00:00:02] [%clk 00:03:03]} bxc6 {[%emt 00:00:01] [%clk 00:02:43]} 10. Nc3 {[%emt
00:00:21] [%clk 00:02:44]} Bf5 {[%emt 00:00:20] [%clk 00:02:25]} 11. b3 {[%emt
00:00:58] [%clk 00:01:49]} Re8 {[%emt 00:00:11] [%clk 00:02:16]} 12. Na4 {[%emt
00:00:11] [%clk 00:01:40]} Ne4 {[%emt 00:00:13] [%clk 00:02:04]} 13. Bb2 {[%emt
00:00:04] [%clk 00:01:38]} Rc8 {[%emt 00:00:42] [%clk 00:01:24]} 14. Rc1 {[%emt
00:00:02] [%clk 00:01:38]} f6 {[%emt 00:00:24] [%clk 00:01:03]} 15. Nc5 {[%emt
00:01:21] [%clk 00:00:19]} Nxc5 {[%emt 00:00:03] [%clk 00:01:02]} 16. Rxc5
{[%emt 00:00:02] [%clk 00:00:20]} Qd7 {[%emt 00:00:11] [%clk 00:00:53]} 17. Qd2
{[%emt 00:00:13] [%clk 00:00:08]} Bf8 {[%emt 00:00:07] [%clk 00:00:48]} 18. Ra5
{[%emt 00:00:06] [%clk 00:00:05]} Qb7 {[%emt 00:00:14] [%clk 00:00:35]} 19. Ra4
{[%emt 00:00:01] [%clk 00:00:06]} e6 {[%emt 00:00:06] [%clk 00:00:31]} 20. Qa5
{[%emt 00:00:03] [%clk 00:00:05]} Rc7 {[%emt 00:00:07] [%clk 00:00:26]} 21. Rc1
{[%emt 00:00:01] [%clk 00:00:06]} Rb8 {[%emt 00:00:04] [%clk 00:00:23]} 22. Qa6
{[%emt 00:00:02] [%clk 00:00:06]} Qxa6 {[%emt 00:00:04] [%clk 00:00:21]} 23.
Rxa6 {[%emt 00:00:01] [%clk 00:00:07]} Rb6 {[%clk 00:00:22]} 24. Ra4 {[%emt
00:00:04] [%clk 00:00:06]} Kf7 {[%emt 00:00:04] [%clk 00:00:20]} 25. Ba3 {[%emt
00:00:03] [%clk 00:00:06]} Bxa3 {[%emt 00:00:02] [%clk 00:00:20]} 26. Rxa3
{[%clk 00:00:07]} Ke7 {[%emt 00:00:03] [%clk 00:00:18]} 27. Rc5 {[%emt 00:00:01]
[%clk 00:00:08]} Kd6 {[%emt 00:00:05] [%clk 00:00:15]} 28. e3 {[%clk 00:00:09]}
e5 {[%emt 00:00:03] [%clk 00:00:14]} 29. Rca5 {[%emt 00:00:02] [%clk 00:00:10]}
Rbb7 {[%emt 00:00:03] [%clk 00:00:14]} 30. Bf1 {[%clk 00:00:11]} exd4 {[%emt
00:00:06] [%clk 00:00:10]} 31. exd4 {[%clk 00:00:12]} Re7 {[%clk 00:00:11]} 32.
Kg2 {[%emt 00:00:08] [%clk 00:00:06]} h5 {[%emt 00:00:02] [%clk 00:00:12]} 33.
h4 {[%emt 00:00:01] [%clk 00:00:07]} Rb4 {[%emt 00:00:10] [%clk 00:00:04]} 34.
Rxa7 {[%emt 00:00:01] [%clk 00:00:08]} Rxa7 {[%emt 00:00:03] [%clk 00:00:03]}
35. Rxa7 {[%clk 00:00:09]} Rxd4 {[%clk 00:00:04]} 36. a4 {[%emt 00:00:01] [%clk
00:00:10]} Rd2 {[%emt 00:00:02] [%clk 00:00:04]} 37. a5 {[%emt 00:00:01] [%clk
00:00:11]} Be4+ {[%clk 00:00:05]} 38. Kg1 {[%emt 00:00:02] [%clk 00:00:11]} Rd1
{[%emt 00:00:01] [%clk 00:00:06]} 39. a6 {[%emt 00:00:10] [%clk 00:00:03]} Bd3
{[%clk 00:00:07]} 40. Ra8 {[%clk 00:00:04]} Rxf1+ {[%emt 00:00:02] [%clk
00:00:07]} 41. Kg2 {[%clk 00:00:05]} Ra1 {[%emt 00:00:02] [%clk 00:00:07]} 42.
a7 {[%emt 00:00:01] [%clk 00:00:07]} Kc7 {[%emt 00:00:02] [%clk 00:00:07]} 43.
Rf8 {[%emt 00:00:05] [%clk 00:00:04]} Rxa7 {[%emt 00:00:01] [%clk 00:00:08]} 44.
Rxf6 {[%emt 00:00:02] [%clk 00:00:04]} Rb7 {[%emt 00:00:01] [%clk 00:00:09]} 0-1

[Site "Europe Echecs"]

[Event "Championnat d'Europe de Blitz"]
[Date "2024.12.09"]
[White "Djukic, Sandra"]
[Black "Saraci, Nderim"]
[WhiteElo "2080"]
[BlackElo "2431"]
[Round "2.40"]
[Result "0-1"]
[TimeControl "180+2"]

1. d4 {[%emt 00:00:01] [%clk 00:03:02]} Nf6 {[%emt 00:00:02] [%clk 00:03:03]} 2.
c4 {[%emt 00:00:01] [%clk 00:03:03]} e6 {[%emt 00:00:02] [%clk 00:03:03]} 3. Nc3
{[%emt 00:00:02] [%clk 00:03:03]} c5 {[%emt 00:00:01] [%clk 00:03:04]} 4. d5
{[%emt 00:00:04] [%clk 00:03:01]} exd5 {[%emt 00:00:02] [%clk 00:03:04]} 5. cxd5
{[%emt 00:00:01] [%clk 00:03:02]} d6 {[%clk 00:03:05]} 6. e4 {[%emt 00:00:01]
[%clk 00:03:03]} g6 {[%emt 00:00:01] [%clk 00:03:06]} 7. f3 {[%clk 00:03:04]}
Bg7 {[%emt 00:00:02] [%clk 00:03:06]} 8. Be3 {[%clk 00:03:05]} a6 {[%emt
00:00:01] [%clk 00:03:07]} 9. a4 {[%clk 00:03:06]} O-O {[%emt 00:00:02] [%clk
00:03:06]} 10. Nge2 {[%emt 00:00:01] [%clk 00:03:07]} Re8 {[%emt 00:00:02] [%clk
00:03:06]} 11. Ng3 {[%clk 00:03:08]} Nbd7 {[%emt 00:00:06] [%clk 00:03:02]} 12.
Be2 {[%emt 00:00:01] [%clk 00:03:08]} Qc7 {[%emt 00:00:03] [%clk 00:03:01]} 13.
O-O {[%emt 00:00:02] [%clk 00:03:06]} c4 {[%emt 00:00:07] [%clk 00:02:58]} 14.
a5 {[%emt 00:00:21] [%clk 00:02:47]} b5 {[%emt 00:00:07] [%clk 00:02:53]} 15.
axb6 {[%emt 00:00:15] [%clk 00:02:35]} Nxb6 {[%emt 00:00:02] [%clk 00:02:53]}
16. Nh1 {[%emt 00:00:08] [%clk 00:02:29]} Nfd7 {[%emt 00:00:08] [%clk 00:02:47]}
17. Nf2 {[%emt 00:00:05] [%clk 00:02:26]} Nc5 {[%emt 00:00:03] [%clk 00:02:46]}
18. Ra3 {[%emt 00:00:11] [%clk 00:02:17]} Bd7 {[%emt 00:00:06] [%clk 00:02:42]}
19. Bd4 {[%emt 00:00:20] [%clk 00:02:00]} Bxd4 {[%emt 00:00:13] [%clk 00:02:31]}
20. Qxd4 {[%emt 00:00:02] [%clk 00:02:00]} Nb3 {[%emt 00:00:05] [%clk 00:02:27]}
21. Qd1 {[%emt 00:00:24] [%clk 00:01:37]} Qc5 {[%emt 00:00:19] [%clk 00:02:10]}
22. Kh1 {[%clk 00:01:38]} Nd4 {[%emt 00:00:15] [%clk 00:01:57]} 23. Ng4 {[%emt
00:01:22] [%clk 00:00:18]} Bxg4 {[%emt 00:00:06] [%clk 00:01:53]} 24. fxg4
{[%clk 00:00:19]} Nb5 {[%emt 00:00:08] [%clk 00:01:47]} 25. Nxb5 {[%emt
00:00:13] [%clk 00:00:09]} axb5 {[%emt 00:00:02] [%clk 00:01:47]} 26. Raf3
{[%emt 00:00:03] [%clk 00:00:08]} Re7 {[%emt 00:00:09] [%clk 00:01:40]} 27. Qd2
{[%emt 00:00:26]} Nd7 {[%clk 00:01:19]} 28. Bd1 {[%emt 00:00:01] [%clk
00:00:07]} Ne5 {[%emt 00:00:13] [%clk 00:01:08]} 29. Rf6 {[%emt 00:00:01] [%clk
00:00:08]} b4 {[%emt 00:00:08] [%clk 00:01:02]} 30. g5 {[%emt 00:00:04] [%clk
00:00:05]} c3 {[%emt 00:00:02] [%clk 00:01:02]} 31. bxc3 {[%clk 00:00:06]} bxc3
{[%emt 00:00:02] [%clk 00:01:03]} 32. Qc2 {[%emt 00:00:03] [%clk 00:00:05]} Rb8
{[%emt 00:00:03] [%clk 00:01:02]} 33. Qa4 {[%emt 00:00:03] [%clk 00:00:04]} Rc8
{[%emt 00:00:19] [%clk 00:00:44]} 34. Bc2 {[%emt 00:00:02] [%clk 00:00:04]} Nc4
{[%emt 00:00:02] [%clk 00:00:45]} 35. R6f3 {[%emt 00:00:04] [%clk 00:00:00]} 0-1

[Site "Europe Echecs"]

[Event "Championnat d'Europe de Blitz"]
[Date "2024.12.09"]
[White "Paichadze, Luka"]
[Black "Papadimitriou, Athanasios"]
[WhiteElo "2532"]
[BlackElo "2267"]
[Round "2.41"]
[Result "1-0"]
[TimeControl "180+2"]

1. e4 {[%emt 00:00:03] [%clk 00:03:02]} d5 {[%clk 00:03:03]} 2. exd5 {[%emt
00:00:02] [%clk 00:03:02]} Nf6 {[%emt 00:00:01] [%clk 00:03:04]} 3. c4 {[%emt
00:00:01] [%clk 00:03:03]} c6 {[%emt 00:00:02] [%clk 00:03:04]} 4. d4 {[%clk
00:03:04]} cxd5 {[%emt 00:00:02] [%clk 00:03:05]} 5. Nc3 {[%clk 00:03:05]} g6
{[%emt 00:00:01] [%clk 00:03:05]} 6. Qb3 {[%emt 00:00:15] [%clk 00:02:53]} Bg7
{[%emt 00:00:04] [%clk 00:03:03]} 7. cxd5 {[%emt 00:00:01] [%clk 00:02:54]} O-O
{[%emt 00:00:04] [%clk 00:03:01]} 8. Be2 {[%emt 00:00:07] [%clk 00:02:48]} Nbd7
{[%emt 00:00:10] [%clk 00:02:53]} 9. Bf3 {[%emt 00:00:02] [%clk 00:02:49]} Nb6
{[%emt 00:00:02] [%clk 00:02:53]} 10. Nge2 {[%emt 00:00:20] [%clk 00:02:30]} e6
{[%emt 00:00:57] [%clk 00:01:58]} 11. d6 {[%emt 00:00:12] [%clk 00:02:21]} Qxd6
{[%emt 00:00:17] [%clk 00:01:42]} 12. Bf4 {[%emt 00:00:01] [%clk 00:02:22]} Qd7
{[%emt 00:00:16] [%clk 00:01:29]} 13. O-O {[%emt 00:00:03] [%clk 00:02:20]} Rd8
{[%emt 00:00:08] [%clk 00:01:23]} 14. Rac1 {[%emt 00:00:05] [%clk 00:02:17]}
Nfd5 {[%emt 00:00:28] [%clk 00:00:58]} 15. Bg3 {[%emt 00:00:03] [%clk 00:02:15]}
Qe7 {[%emt 00:00:17] [%clk 00:00:44]} 16. a4 {[%emt 00:00:15] [%clk 00:02:01]}
Nxc3 {[%emt 00:00:19] [%clk 00:00:27]} 17. bxc3 {[%emt 00:00:01] [%clk
00:02:02]} Nd5 {[%emt 00:00:12] [%clk 00:00:18]} 18. c4 {[%emt 00:00:04] [%clk
00:02:00]} Nf6 {[%emt 00:00:03] [%clk 00:00:17]} 19. a5 {[%emt 00:00:14] [%clk
00:01:49]} a6 {[%emt 00:00:01] [%clk 00:00:17]} 20. Qb6 {[%emt 00:00:31] [%clk
00:01:19]} Rd7 {[%emt 00:00:03] [%clk 00:00:16]} 21. Rb1 {[%emt 00:00:16] [%clk
00:01:05]} Ne8 {[%emt 00:00:02] [%clk 00:00:17]} 22. c5 {[%emt 00:00:05] [%clk
00:01:02]} Bxd4 {[%emt 00:00:06] [%clk 00:00:13]} 23. Nxd4 {[%emt 00:00:01]
[%clk 00:01:03]} Rxd4 {[%emt 00:00:01] [%clk 00:00:13]} 24. c6 {[%emt 00:00:02]
[%clk 00:01:03]} Rd8 {[%emt 00:00:11] [%clk 00:00:04]} 25. cxb7 {[%emt 00:00:04]
[%clk 00:01:00]} Bxb7 {[%emt 00:00:02] [%clk 00:00:05]} 26. Bxb7 {[%emt
00:00:04] [%clk 00:00:59]} 1-0

[Site "Europe Echecs"]

[Event "Championnat d'Europe de Blitz"]
[Date "2024.12.09"]
[White "Ochedzan, Tymon"]
[Black "Bernadskiy, Vitaliy"]
[WhiteElo "2247"]
[BlackElo "2546"]
[Round "2.42"]
[Result "0-1"]
[TimeControl "180+2"]

1. e4 {[%clk 00:03:04]} e6 {[%emt 00:00:03] [%clk 00:03:03]} 2. d4 {[%clk
00:03:05]} d5 {[%emt 00:00:01] [%clk 00:03:04]} 3. Nc3 {[%clk 00:03:06]} Nf6
{[%emt 00:00:02] [%clk 00:03:04]} 4. e5 {[%emt 00:00:01] [%clk 00:03:07]} Nfd7
{[%emt 00:00:02]} 5. f4 {[%clk 00:03:08]} c5 {[%emt 00:00:01] [%clk 00:03:05]}
6. Nf3 {[%emt 00:00:02] [%clk 00:03:08]} Nc6 {[%emt 00:00:01] [%clk 00:03:06]}
7. Be3 {[%emt 00:00:02] [%clk 00:03:09]} Rb8 {[%emt 00:00:02] [%clk 00:03:07]}
8. Qd2 {[%emt 00:00:04] [%clk 00:03:07]} Qa5 {[%emt 00:00:03] [%clk 00:03:06]}
9. Be2 {[%emt 00:00:26] [%clk 00:02:42]} b5 {[%emt 00:00:04] [%clk 00:03:04]}
10. dxc5 {[%emt 00:00:09] [%clk 00:02:35]} b4 {[%emt 00:00:06] [%clk 00:02:59]}
11. Nd1 {[%emt 00:00:10] [%clk 00:02:27]} Nxc5 {[%emt 00:00:07] [%clk 00:02:54]}
12. Nf2 {[%emt 00:00:13] [%clk 00:02:16]} Ba6 {[%emt 00:00:51] [%clk 00:02:05]}
13. O-O {[%emt 00:00:09] [%clk 00:02:10]} Bxe2 {[%emt 00:00:04] [%clk 00:02:03]}
14. Qxe2 {[%emt 00:00:03] [%clk 00:02:10]} Be7 {[%emt 00:00:02] [%clk 00:02:03]}
15. Nd4 {[%emt 00:00:12] [%clk 00:02:00]} Nxd4 {[%emt 00:00:10] [%clk 00:01:55]}
16. Bxd4 {[%emt 00:00:02] [%clk 00:02:00]} Nd7 {[%emt 00:00:18] [%clk 00:01:38]}
17. Nd3 {[%emt 00:00:18] [%clk 00:01:44]} g6 {[%emt 00:00:02] [%clk 00:01:39]}
18. Qf2 {[%emt 00:00:08] [%clk 00:01:37]} a6 {[%emt 00:00:11] [%clk 00:01:30]}
19. Kh1 {[%emt 00:00:37] [%clk 00:01:02]} Qc7 {[%emt 00:00:02] [%clk 00:01:30]}
20. Rac1 {[%emt 00:00:12] [%clk 00:00:52]} h5 {[%emt 00:00:17] [%clk 00:01:15]}
21. c3 {[%emt 00:00:12] [%clk 00:00:43]} b3 {[%emt 00:00:06] [%clk 00:01:11]}
22. axb3 {[%emt 00:00:04] [%clk 00:00:41]} Rxb3 {[%emt 00:00:01] [%clk
00:01:11]} 23. Ra1 {[%emt 00:00:02] [%clk 00:00:41]} O-O {[%emt 00:00:14] [%clk
00:00:59]} 24. Qc2 {[%emt 00:00:06] [%clk 00:00:38]} Qc4 {[%emt 00:00:11] [%clk
00:00:50]} 25. Ra5 {[%emt 00:00:21] [%clk 00:00:18]} Rc8 {[%emt 00:00:03] [%clk
00:00:49]} 26. Qd2 {[%emt 00:00:05] [%clk 00:00:16]} Nb8 {[%emt 00:00:06] [%clk
00:00:45]} 27. Rfa1 {[%emt 00:00:01] [%clk 00:00:17]} Nc6 {[%emt 00:00:16] [%clk
00:00:31]} 28. Rxa6 {[%clk 00:00:18]} Nxd4 {[%emt 00:00:02] [%clk 00:00:31]} 29.
cxd4 {[%emt 00:00:02] [%clk 00:00:18]} Rxd3 {[%emt 00:00:02] [%clk 00:00:32]}
30. Qe1 {[%emt 00:00:01] [%clk 00:00:19]} Qxd4 {[%emt 00:00:03] [%clk 00:00:31]}
31. R6a4 {[%emt 00:00:02] [%clk 00:00:18]} Qxb2 {[%emt 00:00:03] [%clk
00:00:30]} 32. Rb1 {[%emt 00:00:09]} Qd2 {[%clk 00:00:31]} 33. Qf1 {[%emt
00:00:02] [%clk 00:00:13]} Rdc3 {[%emt 00:00:05] [%clk 00:00:28]} 0-1

[Site "Europe Echecs"]